fUSD/lending_fUSD_20260628
["ID","MTS","AMOUNT","RATE_DAILY","PERIOD"]
[426593163,1782646145000,-166.66,0.00011627,2]
[426593171,1782646145000,-299.99,0.000117,2]
[426593167,1782646145000,-216.54711319,0.0001164,2]
[426593175,1782646145000,-166.66,0.00011871,2]
[426593191,1782646145000,325.06,0.00010909,2]
[426593189,1782646145000,-892.40570745,0.0001226,2]
[426593190,1782646145000,325.06,0.00010799,2]
[426593188,1782646145000,-464.54,0.00012255,2]
[426593187,1782646145000,-8036.3593,0.00012245,2]
[426593184,1782646145000,-307.92,0.00012179,2]
[426593186,1782646145000,-321.77,0.00012195,2]
[426593185,1782646145000,-163.73009712,0.00012187,2]
[426593183,1782646145000,-346.79,0.00012148,2]
[426593180,1782646145000,-321.77,0.00012091,2]
[426593181,1782646145000,-321.77,0.00012096,2]
[426593179,1782646145000,-1217.44,0.00012044,2]
[426593178,1782646145000,-321.77,0.00011997,2]
[426593176,1782646145000,-346.79,0.00011898,2]
[426593192,1782646145000,325.06,0.00011019,2]
[426593177,1782646145000,-321.77,0.00011898,2]
[426593174,1782646145000,-402.14,0.00011868,2]
[426593182,1782646145000,-166.66,0.00012116,2]
[426593173,1782646145000,-321.77,0.00011799,2]
[426593193,1782646146000,325.06,0.00011129,2]
[426593194,1782646147000,325.06,0.00011239,2]
[426593196,1782646148000,325.06,0.0001146,2]
[426593195,1782646148000,325.06,0.0001135,2]
[426593197,1782646149000,325.06,0.0001157,2]
[426593215,1782646159000,-500.0,0.00012265,2]
[426593217,1782646159000,-500.0,0.00012265,2]
[426593213,1782646159000,-500.0,0.00012265,2]
[426593214,1782646159000,-500.0,0.00012265,2]
[426593212,1782646159000,-500.0,0.00012265,2]
[426593211,1782646159000,-500.0,0.00012265,2]
[426593209,1782646159000,-500.0,0.00012265,2]
[426593208,1782646159000,-500.0,0.00012265,2]
[426593210,1782646159000,-500.0,0.00012265,2]
[426593203,1782646159000,-242.17493037,0.00012265,2]
[426593206,1782646159000,-500.0,0.00012265,2]
[426593204,1782646159000,-500.0,0.00012265,2]
[426593202,1782646159000,-500.0,0.00012265,2]
[426593200,1782646159000,-500.0,0.00012265,2]
[426593199,1782646159000,-177.75526905,0.00012265,2]
[426593198,1782646159000,-107.59429255,0.0001226,2]
[426593201,1782646159000,-500.0,0.00012265,2]
[426593218,1782646159000,-500.0,0.00012265,2]
[426593216,1782646159000,-500.0,0.00012265,2]
[426593205,1782646159000,-500.0,0.00012265,2]
[426593221,1782646159000,-1358.53,0.00012266,2]
[426593219,1782646159000,-500.0,0.00012265,2]
[426593236,1782646159000,-1852.42,0.00012525,2]
[426593235,1782646159000,-321.77,0.00012493,2]
[426593237,1782646159000,-500.0,0.00012539,2]
[426593238,1782646159000,-166.66,0.00012606,2]
[426593231,1782646159000,-321.77,0.00012394,2]
[426593234,1782646159000,-1000.0,0.00012472,2]
[426593232,1782646159000,-346.79,0.00012399,2]
[426593230,1782646159000,-166.66,0.00012361,2]
[426593233,1782646159000,-200.0,0.00012438,2]
[426593207,1782646159000,-500.0,0.00012265,2]
[426593229,1782646159000,-160.72,0.00012357,2]
[426593223,1782646159000,-321.77,0.00012295,2]
[426593222,1782646159000,-150.0,0.00012266,2]
[426593228,1782646159000,-1217.44,0.00012345,2]
[426593220,1782646159000,-500.0,0.00012265,2]
[426593224,1782646159000,-500.0,0.00012299,2]
[426593226,1782646159000,-166.14,0.00012332,2]
[426593227,1782646159000,-1634.87,0.00012336,2]
[426593225,1782646159000,-2016.6,0.00012303,2]
[426593246,1782646160000,-836.34119581,0.00012947,2]
[426593241,1782646160000,-255.0,0.00012667,2]
[426593244,1782646160000,-500.0,0.00012813,2]
[426593242,1782646160000,-167.7,0.00012682,2]
[426593243,1782646160000,-250.0,0.00012759,2]
[426593240,1782646160000,-346.79,0.00012649,2]
[426593239,1782646160000,-1217.44,0.00012646,2]
[426593245,1782646160000,-166.66,0.0001285,2]
[426593248,1782646161000,335.35,0.00011827,2]
[426593247,1782646161000,335.35,0.00011651,2]
[426593250,1782646163000,-335.35,0.00012177,2]
[426593249,1782646163000,-335.35,0.00012002,2]
[426593252,1782646163000,-2422.29352477,0.0001242,2]
[426593251,1782646163000,-335.35,0.00012352,2]
[426593253,1782646171000,-2643.16647523,0.0001242,2]
[426593255,1782646171000,-335.35,0.00012703,2]
[426593256,1782646171000,-335.35,0.00012878,2]
[426593259,1782646171000,-1217.44,0.00013248,2]
[426593254,1782646171000,-335.35,0.00012527,2]
[426593258,1782646171000,-500.0,0.00013087,2]
[426593257,1782646171000,-381.09880419,0.00012947,2]
[426593263,1782646171000,-500.0,0.00013361,2]
[426593261,1782646171000,-938.2792234,0.00013303,2]
[426593262,1782646171000,-1255.9488366,0.00013303,2]
[426593260,1782646171000,-207.19,0.0001328,2]
[426593264,1782646172000,301.64,0.00012878,2]
[426593265,1782646217000,185.5437,0.0001216,2]
[426593266,1782646227000,151.0,0.00012943,2]
[426593268,1782646230000,151.0,0.00012943,2]
[426593270,1782646231000,-151.0,0.00013604,2]
[426593273,1782646231000,-135.69603829,0.00013698,2]
[426593272,1782646231000,-250.0,0.00013604,2]
[426593271,1782646231000,-151.0,0.00013604,2]
[426593274,1782646231000,-364.30396171,0.00013698,2]
[426593275,1782646231000,-494.43075045,0.00013698,2]
[426593276,1782646231000,-57.46221476,0.00013698,2]
[426593277,1782646231000,-200.0,0.00013699,2]
[426593278,1782646231000,-531.50454774,0.00013799,2]
[426593289,1782646232000,-2500.0,0.000149,2]
[426593290,1782646232000,-156.02381534,0.000149,2]
[426593294,1782646232000,-24180.7347718,0.00014923,2]
[426593296,1782646232000,-207.19,0.0001494,2]
[426593291,1782646232000,-151.55429234,0.000149,2]
[426593300,1782646232000,-203.06830027,0.0001499,2]
[426593288,1782646232000,-4109.70597152,0.000149,2]
[426593292,1782646232000,-150.0,0.00014922,2]
[426593301,1782646232000,-500.0,0.00014999,2]
[426593287,1782646232000,-170.94129522,0.000149,2]
[426593286,1782646232000,-231.7,0.000149,2]
[426593284,1782646232000,-269.89,0.00014822,2]
[426593281,1782646232000,-169.32,0.00014361,2]
[426593283,1782646232000,-1000.0,0.00014822,2]
[426593280,1782646232000,-150.0,0.00013834,2]
[426593279,1782646232000,-827.02545226,0.00013799,2]
[426593285,1782646232000,-8293.1601,0.00014823,2]
[426593299,1782646232000,-500.0,0.00014965,2]
[426593295,1782646232000,-469.902633,0.00014923,2]
[426593298,1782646232000,-250.0,0.00014965,2]
[426593316,1782646232000,-10922.42780372,0.00015,2]
[426593317,1782646232000,-906.42945608,0.00015,2]
[426593315,1782646232000,-11873.7408928,0.00015,2]
[426593314,1782646232000,-335.46174877,0.00014999,2]
[426593312,1782646232000,-500.0,0.00014999,2]
[426593297,1782646232000,-5832.76,0.0001494,2]
[426593305,1782646232000,-500.0,0.00014999,2]
[426593307,1782646232000,-500.0,0.00014999,2]
[426593309,1782646232000,-500.0,0.00014999,2]
[426593306,1782646232000,-500.0,0.00014999,2]
[426593311,1782646232000,-500.0,0.00014999,2]
[426593310,1782646232000,-500.0,0.00014999,2]
[426593304,1782646232000,-500.0,0.00014999,2]
[426593302,1782646232000,-500.0,0.00014999,2]
[426593313,1782646232000,-500.0,0.00014999,2]
[426593303,1782646232000,-500.0,0.00014999,2]
[426593293,1782646232000,-9785.0051394,0.00014923,2]
[426593308,1782646232000,-500.0,0.00014999,2]
[426593318,1782646236000,3437.6563,0.00012713,2]
[426593327,1782646238000,-18549.71018159,0.00015,2]
[426593325,1782646238000,-1607.19319191,0.000149,2]
[426593326,1782646238000,-11130.60279664,0.00015,2]
[426593335,1782646240000,-519.28279448,0.00015,2]
[426593334,1782646240000,-961.22128913,0.00015,2]
[426593340,1782646243000,-1673.46028244,0.00015,2]
[426593341,1782646243000,-464.30076498,0.00015,2]
[426593343,1782646243000,-40.21170288,0.00015,2]
[426593342,1782646243000,-21.56749296,0.00015,2]
[426593347,1782646246000,-889604.92429268,0.00015,2]
[426593346,1782646246000,-1565.05,0.00015,2]
[426593345,1782646246000,-12336.33072776,0.00015,2]
[426593348,1782646246000,-173074.43549282,0.00015,2]
[426593357,1782646295000,229.844395,0.00024407,120]
[426593358,1782646511000,3087.71839436,0.0003,120]
[426593359,1782646666000,-1613.65612336,0.00011459,2]
[426593361,1782646666000,-307.65,0.00011473,2]
[426593363,1782646666000,-307.65,0.00011646,2]
[426593362,1782646666000,-307.65,0.00011559,2]
[426593364,1782646666000,-307.65,0.00011732,2]
[426593365,1782646666000,-307.65,0.00011818,2]
[426593360,1782646666000,-211.60380054,0.00011459,2]
[426593366,1782646666000,-150.0,0.00011856,2]
[426593368,1782646666000,-150.0,0.00011974,2]
[426593371,1782646666000,-307.65,0.00012077,2]
[426593369,1782646666000,-307.65,0.00011991,2]
[426593372,1782646666000,-105.5200761,0.00012091,2]
[426593370,1782646666000,-308.02,0.00012077,2]
[426593367,1782646666000,-307.65,0.00011904,2]
[426593373,1782646667000,-44.4799239,0.00012091,2]
[426593374,1782646667000,-150.0,0.00012097,2]
[426593375,1782646667000,-308.02,0.00012117,2]
[426593378,1782646667000,-308.02,0.00012196,2]
[426593376,1782646667000,-308.02,0.00012156,2]
[426593379,1782646667000,-150.0,0.00012209,2]
[426593377,1782646667000,-307.65,0.00012163,2]
[426593388,1782646668000,-307.65,0.00012422,2]
[426593381,1782646668000,-307.65,0.0001225,2]
[426593385,1782646668000,-307.65,0.00012336,2]
[426593383,1782646668000,-308.02,0.00012315,2]
[426593384,1782646668000,-182.0,0.00012326,2]
[426593386,1782646668000,-308.02,0.00012355,2]
[426593387,1782646668000,-308.02,0.00012395,2]
[426593390,1782646668000,-308.02,0.00012474,2]
[426593380,1782646668000,-308.02,0.00012236,2]
[426593389,1782646668000,-308.02,0.00012435,2]
[426593391,1782646668000,-162.7200761,0.00012508,2]
[426593397,1782646668000,-308.02,0.00012514,2]
[426593398,1782646668000,-158.81,0.00012531,2]
[426593396,1782646668000,-144.9299239,0.00012508,2]
[426593382,1782646668000,-308.02,0.00012276,2]
[426593393,1782646668000,-306.69,0.00011282,2]
[426593394,1782646668000,-306.69,0.00011664,2]
[426593392,1782646668000,-306.69,0.00010899,2]
[426593395,1782646668000,-306.69,0.00012047,2]
[426593399,1782646668000,-1077.7,0.00012531,2]
[426593400,1782646669000,-817.43,0.00012545,2]
[426593402,1782646669000,-308.02,0.00012554,2]
[426593401,1782646669000,-258.47,0.00012551,2]
[426593404,1782646669000,-307.65,0.00012595,2]
[426593405,1782646669000,-84.1900761,0.00012633,2]
[426593406,1782646669000,-223.8299239,0.00012633,2]
[426593403,1782646669000,-308.02,0.00012593,2]
[426593412,1782646670000,-3340.87627556,0.00012713,2]
[426593410,1782646670000,-300.0,0.00012712,2]
[426593409,1782646670000,-307.65,0.00012681,2]
[426593407,1782646670000,-211.60380054,0.00012649,2]
[426593408,1782646670000,-308.02,0.00012673,2]
[426593411,1782646670000,-308.02,0.00012713,2]
[426593413,1782646671000,-5000.0,0.00012713,2]
[426593414,1782646672000,-5000.0,0.00012713,2]
[426593415,1782646673000,-5000.0,0.00012713,2]
[426593416,1782646673000,-5000.0,0.00012713,2]
[426593417,1782646674000,-5000.0,0.00012713,2]
[426593418,1782646675000,-5000.0,0.00012713,2]
[426593419,1782646676000,-5000.0,0.00012713,2]
[426593420,1782646800000,-152.0,0.00012579,2]
[426593423,1782646800000,-4546.0,0.00012579,2]
[426593422,1782646800000,-151.0,0.00012579,2]
[426593421,1782646800000,-151.0,0.00012579,2]
[426593428,1782646806000,-308.02,0.00012752,2]
[426593429,1782646806000,-308.02,0.00012792,2]
[426593426,1782646806000,-466.48446124,0.00012749,2]
[426593427,1782646806000,-153.0,0.00012749,2]
[426593425,1782646806000,-2736.3553593,0.00012579,2]
[426593424,1782646806000,-151.0,0.00012579,2]
[426593431,1782646884000,226.08892232,0.0003735,120]
[426593432,1782646959000,-150.0,0.00012664,2]
[426593434,1782646959000,-151.0,0.00012664,2]
[426593433,1782646959000,-150.0,0.00012664,2]
[426593435,1782646959000,-151.0,0.00012664,2]
[426593437,1782646959000,-150.0,0.00012664,2]
[426593439,1782646959000,-151.0,0.00012664,2]
[426593436,1782646959000,-151.0,0.00012664,2]
[426593438,1782646959000,-151.0,0.00012664,2]
[426593446,1782647059000,-151.0,0.00012832,2]
[426593440,1782647059000,-308.02,0.00012832,2]
[426593442,1782647059000,-151.0,0.00012832,2]
[426593441,1782647059000,-151.0,0.00012832,2]
[426593444,1782647059000,-150.0,0.00012832,2]
[426593443,1782647059000,-150.0,0.00012832,2]
[426593447,1782647059000,-153.0,0.00012832,2]
[426593448,1782647059000,-153.0,0.00012832,2]
[426593452,1782647059000,-251.2,0.00012938,2]
[426593453,1782647059000,-1281.74,0.00012938,2]
[426593445,1782647059000,-151.0,0.00012832,2]
[426593450,1782647059000,-308.02,0.00012872,2]
[426593449,1782647059000,-150.0,0.00012832,2]
[426593451,1782647059000,-308.02,0.00012911,2]
[426593454,1782647091000,199.20000999,0.0003735,120]
[426593458,1782647099000,500.0,0.0003735,120]
[426593457,1782647099000,500.0,0.0003735,120]
[426593456,1782647099000,500.0,0.0003735,120]
[426593455,1782647099000,500.0,0.0003735,120]
[426593459,1782647100000,500.0,0.0003735,120]
[426593460,1782647100000,500.0,0.0003735,120]
[426593461,1782647100000,500.0,0.0003735,120]
[426593463,1782647101000,483.16773282,0.0003735,120]
[426593462,1782647101000,500.0,0.0003735,120]
[426593468,1782647228000,-153.0,0.00012832,2]
[426593464,1782647228000,-151.0,0.00012832,2]
[426593465,1782647228000,-151.0,0.00012832,2]
[426593466,1782647228000,-152.0,0.00012832,2]
[426593469,1782647228000,-151.0,0.00012832,2]
[426593467,1782647228000,-151.0,0.00012832,2]
[426593470,1782647228000,-151.0,0.00012834,2]
[426593473,1782647228000,-152.0,0.00012884,2]
[426593471,1782647228000,-151.0,0.0001284,2]
[426593474,1782647228000,-250.0,0.00012885,2]
[426593475,1782647228000,-8718.25,0.00012938,2]
[426593476,1782647228000,-308.02,0.00012951,2]
[426593477,1782647228000,-167.97079082,0.00012991,2]
[426593472,1782647228000,-160.0,0.00012869,2]
[426593494,1782647232000,-152.0,0.00013899,2]
[426593491,1782647232000,-200.0,0.00013682,2]
[426593492,1782647232000,-200.0,0.00013699,2]
[426593489,1782647232000,-167.72,0.00013482,2]
[426593487,1782647232000,-308.02,0.00013229,2]
[426593488,1782647232000,-247.49,0.00013344,2]
[426593490,1782647232000,-247.49,0.00013678,2]
[426593484,1782647232000,-175.51,0.00013187,2]
[426593486,1782647232000,-3504.52,0.00013199,2]
[426593483,1782647232000,-308.02,0.0001315,2]
[426593482,1782647232000,-308.02,0.0001311,2]
[426593480,1782647232000,-17389.75,0.00013053,2]
[426593481,1782647232000,-308.02,0.0001307,2]
[426593478,1782647232000,-140.04920918,0.00012991,2]
[426593479,1782647232000,-308.02,0.0001303,2]
[426593485,1782647232000,-308.02,0.00013189,2]
[426593495,1782647232000,-150.0,0.00013899,2]
[426593500,1782647232000,-1077.7,0.00014098,2]
[426593496,1782647232000,-153.0,0.00013899,2]
[426593513,1782647232000,-3046.25801883,0.00014894,2]
[426593511,1782647232000,-1368.28400386,0.00014772,2]
[426593512,1782647232000,-175.51,0.00014836,2]
[426593508,1782647232000,-247.49,0.00014345,2]
[426593509,1782647232000,-247.49,0.00014678,2]
[426593493,1782647232000,-150.0,0.00013836,2]
[426593506,1782647232000,-250.0,0.00014115,2]
[426593507,1782647232000,-493.77448496,0.00014115,2]
[426593510,1782647232000,-518.48268308,0.00014772,2]
[426593504,1782647232000,-269.40935882,0.00014115,2]
[426593503,1782647232000,-300.0,0.00014115,2]
[426593501,1782647232000,-250.0,0.00014115,2]
[426593502,1782647232000,-193.0,0.00014115,2]
[426593499,1782647232000,-247.49,0.00014011,2]
[426593497,1782647232000,-150.0,0.00013899,2]
[426593498,1782647232000,-250.0,0.00014,2]
[426593505,1782647232000,-600.0,0.00014115,2]
[426593514,1782647236000,-1067.28,0.00014103,2]
[426593515,1782647236000,-501.05770611,0.00014369,2]
[426593517,1782647236000,-194.10523726,0.00014899,2]
[426593518,1782647236000,-151.0,0.00014899,2]
[426593516,1782647236000,-1141.64928117,0.00014894,2]
[426593521,1782647236000,-500.0,0.00014899,2]
[426593519,1782647236000,-151.0,0.00014899,2]
[426593523,1782647236000,-218.80028665,0.00014899,2]
[426593522,1782647236000,-500.0,0.00014899,2]
[426593525,1782647236000,-233.18949491,0.000149,2]
[426593524,1782647236000,-151.5542923,0.000149,2]
[426593520,1782647236000,-3698.73537435,0.00014899,2]
[426593537,1782647368000,-150.0,0.000149,2]
[426593539,1782647368000,-151.5542923,0.000149,2]
[426593536,1782647368000,-151.0,0.000149,2]
[426593533,1782647368000,-160.0,0.00014899,2]
[426593534,1782647368000,-897.0,0.00014899,2]
[426593532,1782647368000,-386.05602052,0.00014899,2]
[426593531,1782647368000,-899.0,0.00014899,2]
[426593530,1782647368000,-151.0,0.00014899,2]
[426593528,1782647368000,-151.0,0.00014899,2]
[426593538,1782647368000,-151.0,0.000149,2]
[426593527,1782647368000,-151.0,0.00014899,2]
[426593526,1782647368000,-904.0,0.00014899,2]
[426593535,1782647368000,-151.0,0.000149,2]
[426593540,1782647368000,-2500.0,0.000149,2]
[426593529,1782647368000,-150.0,0.00014899,2]
[426593543,1782647368000,-500.0,0.00014993,2]
[426593541,1782647368000,-357.39691055,0.00014947,2]
[426593556,1782647368000,-4870.31286258,0.00014994,2]
[426593555,1782647368000,-4140.0143945,0.00014994,2]
[426593554,1782647368000,-580.4818585,0.00014993,2]
[426593553,1782647368000,-500.0,0.00014993,2]
[426593552,1782647368000,-500.0,0.00014993,2]
[426593550,1782647368000,-500.0,0.00014993,2]
[426593542,1782647368000,-150.0,0.00014993,2]
[426593549,1782647368000,-500.0,0.00014993,2]
[426593548,1782647368000,-478.2327248,0.00014993,2]
[426593546,1782647368000,-500.0,0.00014993,2]
[426593547,1782647368000,-188.69133952,0.00014993,2]
[426593545,1782647368000,-500.0,0.00014993,2]
[426593544,1782647368000,-500.0,0.00014993,2]
[426593551,1782647368000,-500.0,0.00014993,2]
[426593560,1782647432000,-153.0,0.00014899,2]
[426593559,1782647432000,-916.0,0.00014899,2]
[426593561,1782647432000,-883.0,0.00014899,2]
[426593562,1782647432000,-151.0,0.00014899,2]
[426593564,1782647432000,-151.0,0.00014899,2]
[426593563,1782647432000,-916.0,0.00014899,2]
[426593566,1782647432000,-900.0,0.00014899,2]
[426593567,1782647432000,-896.0,0.00014899,2]
[426593569,1782647432000,-911.0,0.00014899,2]
[426593565,1782647432000,-905.0,0.00014899,2]
[426593571,1782647432000,-153.0,0.00014899,2]
[426593568,1782647432000,-150.0,0.00014899,2]
[426593581,1782647432000,-945.37463031,0.00014994,2]
[426593572,1782647432000,-885.0,0.00014899,2]
[426593573,1782647432000,-886.0,0.00014899,2]
[426593574,1782647432000,-1687.84567135,0.000149,2]
[426593576,1782647432000,-376.33326758,0.00014994,2]
[426593575,1782647432000,-34988.73081493,0.00014994,2]
[426593577,1782647432000,-8898.88803028,0.00014994,2]
[426593570,1782647432000,-912.0,0.00014899,2]
[426593597,1782647438000,-2769.39256956,0.00014994,2]
[426593595,1782647438000,-902.0,0.00014899,2]
[426593596,1782647438000,-152.0,0.00014994,2]
[426593598,1782647438000,-12737.79598855,0.00014994,2]
[426593599,1782647438000,-18549.71018159,0.00014994,2]
[426593600,1782647440000,-916.0,0.00014994,2]
[426593602,1782647440000,-380.92889,0.00014999,2]
[426593601,1782647440000,-258.17113022,0.00014994,2]
[426593607,1782647441000,-500.0,0.00014999,2]
[426593603,1782647441000,-0.85147294,0.00014999,2]
[426593604,1782647441000,-104.0537741,0.00014999,2]
[426593606,1782647441000,-405.64390891,0.00014999,2]
[426593611,1782647441000,-427.47820379,0.00014999,2]
[426593605,1782647441000,-172.08279822,0.00014999,2]
[426593608,1782647441000,-500.0,0.00014999,2]
[426593609,1782647441000,-500.0,0.00014999,2]
[426593613,1782647441000,-500.0,0.00014999,2]
[426593612,1782647441000,-72.52179621,0.00014999,2]
[426593614,1782647441000,-538.42378366,0.00014999,2]
[426593615,1782647441000,-107.63673022,0.00014999,2]
[426593610,1782647441000,-500.0,0.00014999,2]
[426593623,1782647443000,-302.45883185,0.00014999,2]
[426593621,1782647443000,-500.0,0.00014999,2]
[426593626,1782647443000,-500.0,0.00014999,2]
[426593622,1782647443000,-197.54116815,0.00014999,2]
[426593627,1782647443000,-500.0,0.00014999,2]
[426593619,1782647443000,-392.36326978,0.00014999,2]
[426593620,1782647443000,-500.0,0.00014999,2]
[426593624,1782647443000,-500.0,0.00014999,2]
[426593625,1782647443000,-500.0,0.00014999,2]
[426593628,1782647443000,-500.0,0.00014999,2]
[426593631,1782647443000,-504.9477183,0.00014999,2]
[426593630,1782647443000,-500.0,0.00014999,2]
[426593629,1782647443000,-500.0,0.00014999,2]
[426593632,1782647443000,-56393.19774599,0.00015,2]
[426593634,1782647443000,-5913.38507529,0.00015,2]
[426593633,1782647443000,-7343.98566874,0.00015,2]
[426593635,1782647444000,-1081.30890465,0.00015,2]
[426593638,1782647446000,-302.0,0.00014999,2]
[426593639,1782647446000,-607.0,0.00014999,2]
[426593640,1782647446000,-684811.134849,0.00015,2]
[426593641,1782647446000,-2310.40297357,0.00015,2]
[426593642,1782647446000,-4329.86327708,0.00015,2]
[426593643,1782647446000,-2565.3,0.00015,2]
[426593647,1782647446000,-14402.38878578,0.00015,2]
[426593645,1782647446000,-2748.07781181,0.00015,2]
[426593646,1782647446000,-778.0950461,0.00015,2]
[426593649,1782647446000,-77.40441834,0.00015,2]
[426593648,1782647446000,-1171.79967414,0.00015,2]
[426593650,1782647446000,-3086.95274419,0.00015,2]
[426593644,1782647446000,-3122.75,0.00015,2]
[426593655,1782647808000,188.47997323,0.0003735,120]
[426593659,1782647998000,882.68,0.00037347,120]
[426593662,1782647999000,882.68,0.00037347,120]
[426593661,1782647999000,882.68,0.00037347,120]
[426593660,1782647999000,882.68,0.00037347,120]
[426593664,1782648000000,882.68,0.00037347,120]
[426593663,1782648000000,882.68,0.00037347,120]
[426593666,1782648001000,882.68,0.00037347,120]
[426593665,1782648001000,882.68,0.00037347,120]
[426593669,1782648002000,882.68,0.00037347,120]
[426593668,1782648002000,882.68,0.00037347,120]
[426593667,1782648002000,882.68,0.00037347,120]
[426593672,1782648003000,882.68,0.00037347,120]
[426593671,1782648003000,882.68,0.00037347,120]
[426593670,1782648003000,882.68,0.00037347,120]
[426593673,1782648004000,882.68,0.00037347,120]
[426593676,1782648004000,882.68,0.00037347,120]
[426593675,1782648004000,882.68,0.00037347,120]
[426593674,1782648004000,882.68,0.00037347,120]
[426593677,1782648005000,882.68,0.00037347,120]
[426593678,1782648005000,882.68,0.00037347,120]
[426593681,1782648006000,882.68,0.00037347,120]
[426593680,1782648006000,882.68,0.00037347,120]
[426593679,1782648006000,882.68,0.00037347,120]
[426593682,1782648007000,882.74,0.00037347,120]
[426593683,1782648183000,306.33,0.00010578,2]
[426593684,1782648184000,28.04967431,0.00010652,2]
[426593685,1782648327000,504.864657,0.00037348,120]
[426593686,1782648515000,1091.78,9.614e-05,2]
[426593688,1782648516000,812.35932424,9.726e-05,2]
[426593687,1782648516000,279.42067576,9.726e-05,2]
[426593689,1782648516000,755.38109078,9.839e-05,2]
[426593690,1782648516000,336.39890922,9.839e-05,2]
[426593691,1782648516000,1091.78,9.951e-05,2]
[426593703,1782648545000,-150.0,0.00010351,2]
[426593708,1782648545000,-307.98,0.00010475,2]
[426593706,1782648545000,-307.98,0.00010416,2]
[426593707,1782648545000,-256.0,0.00010453,2]
[426593704,1782648545000,-307.98,0.00010356,2]
[426593705,1782648545000,-1091.78,0.00010401,2]
[426593702,1782648545000,-307.98,0.00010297,2]
[426593693,1782648545000,-1091.78,0.00010063,2]
[426593699,1782648545000,-307.98,0.00010238,2]
[426593697,1782648545000,-1091.78,0.00010176,2]
[426593698,1782648545000,-307.98,0.00010179,2]
[426593694,1782648545000,-307.98,0.0001012,2]
[426593696,1782648545000,-250.0,0.00010149,2]
[426593695,1782648545000,-150.0,0.00010135,2]
[426593711,1782648545000,-307.98,0.00010593,2]
[426593701,1782648545000,-1091.78,0.00010288,2]
[426593713,1782648545000,-278.28032569,0.00010652,2]
[426593700,1782648545000,-150.0,0.0001025,2]
[426593709,1782648545000,-1091.78,0.00010513,2]
[426593712,1782648545000,-1091.78,0.00010626,2]
[426593729,1782648545000,-306.33,0.00011098,2]
[426593728,1782648545000,-307.98,0.00011067,2]
[426593726,1782648545000,-306.33,0.00011023,2]
[426593725,1782648545000,-307.98,0.00011007,2]
[426593727,1782648545000,-166.66,0.00011047,2]
[426593724,1782648545000,-306.33,0.00010949,2]
[426593722,1782648545000,-307.98,0.00010889,2]
[426593723,1782648545000,-307.98,0.00010948,2]
[426593720,1782648545000,-307.98,0.0001083,2]
[426593719,1782648545000,-150.0,0.00010801,2]
[426593717,1782648545000,-307.98,0.00010771,2]
[426593718,1782648545000,-306.33,0.00010801,2]
[426593716,1782648545000,-306.33,0.00010727,2]
[426593715,1782648545000,-307.98,0.00010712,2]
[426593714,1782648545000,-307.98,0.00010652,2]
[426593710,1782648545000,-307.98,0.00010534,2]
[426593721,1782648545000,-306.33,0.00010875,2]